{"text_format":"1","workbook":"xlsx","n_sheets":2,"sheets":["K3VLS-OEM","spec"],"not_rendered":{"charts":0,"images":2,"macros":1,"external_links":0,"defined_names":35,"comments":0,"pivot_tables":0},"unopened":[],"bounds":{"document_bytes":16777216,"sheet_cells":100000,"rows_first":2000,"rows_last":500,"rows_between":2000,"halvings":0,"cell_chars":16384,"cell_head_chars":4096},"cells_cut":0,"cells_raw":0,"read":"whole","date_system":"1900"}

{"sheet":"K3VLS-OEM","index":0,"n_rows":99,"n_cols":23,"rows_kept":99,"cut":false,"hidden":false,"merged":[[10,1,10,6],[2,1,2,5],[86,18,87,22],[27,1,27,3],[72,5,72,15],[56,1,61,3],[56,4,61,4],[61,5,61,15],[56,17,61,17],[74,18,85,22],[74,17,85,17],[45,4,53,4],[45,1,53,3],[44,18,44,22],[52,5,52,15],[53,5,53,15],[73,5,73,15],[57,5,57,15],[58,5,58,15],[42,1,43,3],[42,4,43,4],[54,5,54,15],[71,18,73,22],[15,1,15,3],[15,5,15,16],[64,5,64,9],[63,5,63,9],[62,1,64,3],[62,4,64,4],[88,18,88,22],[88,5,88,15],[25,1,25,3],[25,5,25,10],[25,11,25,16],[25,17,25,19],[18,11,19,16],[18,17,19,17],[18,5,19,10],[17,1,17,3],[17,5,17,10],[18,1,19,3],[15,18,15,21],[16,1,16,3],[30,5,30,16],[30,21,30,22],[28,17,28,22],[76,5,76,15],[17,11,17,16],[96,18,98,22],[89,5,89,15],[94,5,94,15],[95,5,95,15],[20,11,21,16],[20,17,21,17],[20,18,21,18],[20,19,21,19],[20,20,21,20],[20,22,21,22],[89,18,89,22],[23,11,23,16],[26,17,26,22],[22,5,22,10],[22,11,22,16],[85,5,85,15],[82,5,82,15],[34,1,34,11],[34,12,34,22],[33,1,33,11],[33,12,33,22],[29,5,29,16],[65,17,70,17],[65,18,70,22],[14,1,14,3],[14,5,14,16],[14,17,14,22],[94,21,94,22],[95,21,95,22],[86,1,95,3],[86,4,95,4],[86,17,95,17],[90,5,90,15],[91,5,91,15],[92,5,92,15],[93,5,93,15],[24,1,24,3],[24,5,24,10],[24,11,24,16],[31,1,31,3],[27,5,27,16],[27,17,27,22],[31,5,31,16],[31,17,31,22],[28,1,28,3],[28,5,28,16],[56,18,61,22],[29,1,29,3],[18,18,19,18],[18,19,19,19],[18,20,19,20],[45,17,53,17],[46,5,46,15],[49,5,49,15],[50,5,50,15],[45,5,45,15],[51,5,51,15],[23,5,23,10],[43,5,43,15],[42,17,43,17],[42,18,43,22],[42,5,42,15],[39,5,39,15],[29,21,29,22],[30,1,30,3],[62,5,62,9],[60,5,60,15],[59,5,59,15],[62,10,62,15],[54,17,55,17],[54,18,55,22],[55,5,55,15],[62,17,64,17],[62,18,64,22],[45,18,53,22],[56,5,56,15],[12,10,12,11],[40,5,40,15],[36,1,36,3],[36,5,36,16],[36,18,36,22],[37,1,41,3],[37,4,41,4],[37,5,37,15],[37,17,41,17],[37,18,41,22],[38,5,38,15],[41,5,41,15],[18,22,19,22],[20,1,21,3],[20,4,21,4],[20,5,21,10],[22,1,22,3],[25,20,25,21],[18,4,19,4],[26,1,26,3],[26,5,26,16],[23,1,23,3],[16,5,16,10],[16,11,16,16],[2,10,2,12],[2,13,2,16],[2,17,2,18],[2,19,2,22],[5,10,5,12],[5,13,5,16],[5,17,5,18],[5,19,5,22],[8,10,8,12],[8,13,8,16],[8,17,8,18],[8,19,8,22],[5,1,6,8],[7,1,8,8],[96,1,98,3],[96,4,98,4],[96,5,96,15],[97,5,97,15],[98,5,98,15],[67,5,67,9],[68,5,68,9],[63,10,63,15],[64,10,64,15],[65,10,65,15],[66,10,66,15],[67,10,67,15],[68,10,68,15],[66,5,66,9],[78,5,78,15],[79,5,79,15],[69,5,69,15],[70,5,70,15],[77,5,77,15],[65,5,65,9],[11,1,12,1],[11,10,11,11],[0,5,0,6],[0,19,0,20],[44,1,44,3],[47,5,47,15],[48,5,48,15],[96,17,98,17],[81,5,81,15],[75,5,75,15],[86,5,86,15],[87,5,87,15],[83,5,83,15],[74,1,85,3],[74,4,85,4],[84,5,84,15],[80,5,80,15],[74,5,74,15],[65,1,70,3],[71,1,73,3],[71,4,73,4],[65,4,70,4],[71,5,71,15],[71,17,73,17],[54,1,55,3],[54,4,55,4]]}
[null,null,null,null,null,null,null,null,null,null,null,null,null,null,null,null,null,null,null,"Language : English",null,null,"Rev: 7"]
[]
[null,"K3VLS series Inquiry Form",null,null,null,null,null,null,null,null,"Fill-in Date ：",null,null,null,null,null,null,"Author ："]
[]
[]
[null,"Please select an item from a drop down list in a cell with thick red borders. Options with ★ are under development, options with ◆ are available in Europe/US.",null,null,null,null,null,null,null,null,"Application ：",null,null,null,null,null,null,"Machine Model ："]
[]
[null,"If the cell's color is red, the request is out of Kawasaki standard specification range. Even if the request is out of Kawasaki specification range, please describe the detail on the note and consult with Kawasaki."]
[null,null,null,null,null,null,null,null,null,null,"Customer ：",null,null,null,null,null,null,"Pump Model ：",null,{"$f":"C13&D13&E13&F13&G13&H13&I13&J13&K13&M13&N13&O13&P13&Q13&R13","v":"K3VLS50-1ARBS-L0A-T***"}]
[]
[null,"Swash Plate Type Axial Piston Pump"]
[null,"Model Code",1,2,3,4,5,6,7,8,null,null,9,10,11,12,null,13]
[null,null,"K3VLS",{"$f":"IF(R38<>\"\",R38,\"\")","v":50},{"$f":"IF(R43<>\"\",R43,\"\")","v":"-"},1,{"$f":"IF(R46<>\"\",R46,\"\")","v":"A"},{"$f":"IF(R55<>\"\",R55,\"\")","v":"R"},{"$f":"IF(R57<>\"\",R57,\"\")","v":"B"},{"$f":"IF(R63<>\"\",R63,\"\")","v":"S"},"-",null,{"$f":"IF(R66<>\"\",R66,\"\")","v":"L0"},{"$f":"IF(R72=\"Blank\",\"\",R72)","v":"A"},{"$f":"IF(R75=\"Blank\",\"\",R75)","v":""},{"$f":"IF(R87=\"Blank\",\"\",R87)","v":""},"-",{"$f":"IF(R97=\"Blank\",\"\",R97)","v":"T***"}]
[]
[null,"Items",null,null,"No.","Standard Specification",null,null,null,null,null,null,null,null,null,null,null,"Customer Specification"]
[null,"Pump Max Displacement",null,null,"---",{"$f":"spec!X22","v":"50, 45, 40, 35cm3"},null,null,null,null,null,null,null,null,null,null,null,"Max Disp:",null,null,null,null,"cm3"]
[null,"Max / Self Prime Speed",null,null,"---",{"$f":"IF(T1=\"Language : English\",\"Max: Up to \"&TEXT(spec!Z22,\"0\")&\" \"&\"min-1\",\"最高回転数: \"&TEXT(spec!Z22,\"0\")&\" \"&\"min-1 まで\")","v":"Max: Up to 3250 min-1"},null,null,null,null,null,{"$f":"IF(T1=\"Language : English\",\"Self Prime: Up to \"&TEXT(spec!AC22,\"0\")&\" \"&\"min-1\"&\" \"&\"@\"&TEXT(S16,\"0\")&\"cm3\",\"自吸最高回転数: \"&TEXT(spec!AC22,\"0\")&\" \"&\"min-1\"&\" \"&\"@\"&TEXT(S16,\"0\")&\"cm3 まで\")","v":"Self Prime: Up to 0 min-1 @0cm3"},null,null,null,null,null,"Max:",null,"min-1","Self Prime:",null,"min-1"]
[null,"Peak / Rated Pressure",null,null,"---",{"$f":"IF(T1=\"Language : English\",\"Peak: Up to \"&TEXT(spec!AB22,\"0\")&\" \"&\"MPa\",\"ピーク圧力: \"&TEXT(spec!AB22,\"0\")&\" \"&\"MPa まで\")","v":"Peak: Up to 35 MPa"},null,null,null,null,null,{"$f":"IF(T1=\"Language : English\",\"Rated: Up to \"&TEXT(spec!AA22,\"0\")&\" \"&\"MPa\",\"定格圧力: \"&TEXT(spec!AA22,\"0\")&\" \"&\"MPa まで\")","v":"Rated: Up to 28 MPa"},null,null,null,null,null,"Peak:",null,"MPa","Rated:",null,"MPa"]
[null,"Set Pressure of Load Sensing Differential Pressure / Tolerance",null,null,"---",{"$f":"IF(T1=\"Language : English\",\"Load Sensing Differential Pressure: 1.5 MPa (STD)\"&CHAR(10)&IF(R72=\"A\",\"(Code A : Adjustable Range = 1.0 - 3.0 MPa)\",\"(Code C : Adjustable Range = 1.5 - 4.0 MPa)\"),\"ロードセンシング差圧設定: 1.5 MPa (標準)\"&CHAR(10)&IF(R72=\"A\",\"(コード A : 調整範囲 = 1.0 - 3.0 MPa)\",\"(コード C : 調整範囲 = 1.5 - 4.0 MPa)\"))","v":"Load Sensing Differential Pressure: 1.5 MPa (STD)\n(Code A : Adjustable Range = 1.0 - 3.0 MPa)"},null,null,null,null,null,"Tolerance: +0.3/-0.2 MPa (STD)",null,null,null,null,null,"ΔLS:",null,"MPa","Tol:",null,"MPa"]
[]
[null,"Set Pressure of Cut-Off / Tolerance",null,null,"---",{"$f":"IF(T1=\"Language : English\",\"Pressure Cut-Off: 28 MPa (STD)\"&CHAR(10)&\"(Adjustable Range = 5.0 - 28.0 MPa)\",\"圧力カットオフ: 28 MPa (標準)\"&CHAR(10)&\"(調整範囲 = 5.0 - 28.0 MPa)\")","v":"Pressure Cut-Off: 28 MPa (STD)\n(Adjustable Range = 5.0 - 28.0 MPa)"},null,null,null,null,null,"Tolerance: +0/-1.5 MPa (STD)",null,null,null,null,null,"Cut-Off:",null,"MPa","Tol:",null,"MPa"]
[]
[null,"Suction Pressure / Temperature Range",null,null,"---","The suction pressure has to be greater or equal to 0 MPa gauge at Self Prime speed.",null,null,null,null,null,"-20 ～ 95 ℃",null,null,null,null,null,"Suction:",null,"MPa","Operating:",null,"℃"]
[null,"Pump / Through Drive Input Torque",null,null,"---",{"$f":"IF(T1=\"Language : English\",\"Pump(Containing T/D Pump) Torque: Up to\"&\" \"&TEXT(spec!R104,\"0\")&\" \"&\"Nm\"&\"\",\"ポンプ(スルードライブポンプを含む) トルク: \"&\" \"&TEXT(spec!R104,\"0\")&\" \"&\"Nm まで\"&\"\")","v":"Pump(Containing T/D Pump) Torque: Up to 200 Nm"},null,null,null,null,null,{"$f":"IF(T1=\"Language : English\",\"Through Drive Pump: Up to\"&\" \"&TEXT(spec!X103,\"0\")&\" \"&\"Nm\",\"スルードライブポンプ: \"&\" \"&TEXT(spec!X103,\"0\")&\" \"&\"Nm まで\")","v":"Through Drive Pump: Up to 380 Nm"},null,null,null,null,null,"Pump:",null,"Nm","T/D:",null,"Nm"]
[null,"Case Drain Pressure",null,null,"---","Continuous: Up to 0.1 MPa",null,null,null,null,null,"Peak: Up to 0.4 MPa",null,null,null,null,null,"Cont:",null,"MPa","Peak:",null,"MPa"]
[null,"Oil Type / Oil Viscosity Range",null,null,"---","Equivalent to ISO VG46",null,null,null,null,null,"10 ～ 1,000 mm2/s(cSt)",null,null,null,null,null,null,null,null,null,null,"mm2/s(cSt)"]
[null,"Name Plate",null,null,"---","KHI Standard (Supplier Name, Model Code and S/N)"]
[null,"Paint",null,null,"---","KHI Standard (Act Primer Red Brown)"]
[null,"Customer Part Number",null,null,"---"]
[null,"Proto Type Requirement",null,null,"---",null,null,null,null,null,null,null,null,null,null,null,null,"Qty's:",null,"pcs","Due date:"]
[null,"Production Schedule",null,null,"---",null,null,null,null,null,null,null,null,null,null,null,null,"Qty's:",null,"pcs/years","Start date:"]
[null,"Original Pump Model (Competitor)",null,null,"---","If the model of original pump can be found, please write down for a reference"]
[]
[null,"Comments(Other requirements)",null,null,null,null,null,null,null,null,null,null,"Operating condition, Duty cycle etc. (Describe your detail)"]
[]
[]
[null,"Items",null,null,"No.","Standard Specification",null,null,null,null,null,null,null,null,null,null,null,"Code","Note"]
[null,"Pump Size",null,null,2," 50",null,null,null,null,null,null,null,null,null,null,{"$f":"IF(spec!R39=\"○\",\"★\",\"\")","v":""},50]
[null,null,null,null,null," 65",null,null,null,null,null,null,null,null,null,null,{"$f":"IF(spec!R40=\"○\",\"★\",\"\")","v":""}]
[null,null,null,null,null," 85",null,null,null,null,null,null,null,null,null,null,{"$f":"IF(spec!R41=\"○\",\"★\",\"\")","v":""}]
[null,null,null,null,null," 105",null,null,null,null,null,null,null,null,null,null,{"$f":"IF(spec!R42=\"○\",\"★\",\"\")","v":""}]
[null,null,null,null,null," 150",null,null,null,null,null,null,null,null,null,null,{"$f":"IF(spec!R43=\"○\",\"★\",\"\")","v":""}]
[null,"O-ring Material",null,null,3," - : NBR (Orings: Nitrile rubber, Oil Seal: Fluoro rubber)",null,null,null,null,null,null,null,null,null,null,{"$f":"IF(spec!R44=\"○\",\"★\",\"\")","v":""},"-"]
[null,null,null,null,null," V : Viton (Orings: Fluoro　rubber, Oil Seal: Fluoro　rubber)"]
[null,"Series Type Code",null,null,4," 1 : Standard Type",null,null,null,null,null,null,null,null,null,null,{"$f":"IF(spec!R46=\"○\",\"★\",\"\")","v":""},1]
[null,"Through Drive and Porting",null,null,5," 0 : w/o Through Drive, Side Ported",null,null,null,null,null,null,null,null,null,null,{"$f":"IF(spec!R47=\"○\",\"★\",\"\")","v":""},"A"]
[null,null,null,null,null," A : SAE-A Through Drive, Side Ported",null,null,null,null,null,null,null,null,null,null,{"$f":"IF(spec!R48=\"○\",\"★\",\"\")","v":""}]
[null,null,null,null,null," B : SAE-B Through Drive, Side Ported",null,null,null,null,null,null,null,null,null,null,{"$f":"IF(spec!R49=\"○\",\"★\",\"\")","v":""}]
[null,null,null,null,null," BB : SAE-BB Through Drive, Side Ported",null,null,null,null,null,null,null,null,null,null,{"$f":"IF(spec!R50=\"○\",\"★\",\"\")","v":""}]
[null,null,null,null,null," C : SAE-C 2/4 bolt Through Drive, Side Ported (for K3VLS65/85/105/150)",null,null,null,null,null,null,null,null,null,null,{"$f":"IF(spec!R51=\"○\",\"★\",\"\")","v":""}]
[null,null,null,null,null," CC : SAE-CC 2/4 bolt Through Drive, Side Ported (for K3VLS105/150)",null,null,null,null,null,null,null,null,null,null,{"$f":"IF(spec!R52=\"○\",\"★\",\"\")","v":""}]
[null,null,null,null,null," D : SAE-D 2/4 bolt Through Drive, Side Ported (for K3VLS150)",null,null,null,null,null,null,null,null,null,null,{"$f":"IF(spec!R53=\"○\",\"★\",\"\")","v":""}]
[null,null,null,null,null," N : w/ Through Drive Shaft, w/o Coupling, Closed w/ Steel Cover, Side Ported",null,null,null,null,null,null,null,null,null,null,{"$f":"IF(spec!R54=\"○\",\"★\",\"\")","v":""}]
[null,null,null,null,null," R : w/o Through Drive, Rear Ported",null,null,null,null,null,null,null,null,null,null,{"$f":"IF(spec!R55=\"○\",\"★\",\"\")","v":""}]
[null,"Direction of Rotation",null,null,6," R ： Clockwise",null,null,null,null,null,null,null,null,null,null,{"$f":"IF(spec!R56=\"○\",\"★\",\"\")","v":""},"R"]
[null,null,null,null,null," L ： Counterclockwise",null,null,null,null,null,null,null,null,null,null,{"$f":"IF(spec!R57=\"○\",\"★\",\"\")","v":""}]
[null,"Mounting Flange and Shaft",null,null,7," B ： SAE-B Mount & SAE-B Spline (for K3VLS50/65)",null,null,null,null,null,null,null,null,null,null,{"$f":"IF(spec!R58=\"○\",\"★\",\"\")","v":""},"B"]
[null,null,null,null,null," BB ： SAE-B Mount & SAE-BB Spline (for K3VLS50/65)",null,null,null,null,null,null,null,null,null,null,{"$f":"IF(spec!R59=\"○\",\"★\",\"\")","v":""}]
[null,null,null,null,null," C ： SAE-C Mount & SAE-C Spline (for K3VLS65/85/105/150)",null,null,null,null,null,null,null,null,null,null,{"$f":"IF(spec!R60=\"○\",\"★\",\"\")","v":""}]
[null,null,null,null,null," CC ： SAE-C Mount & SAE-CC Spline (for K3VLS105/150)",null,null,null,null,null,null,null,null,null,null,{"$f":"IF(spec!R61=\"○\",\"★\",\"\")","v":""}]
[null,null,null,null,null," D ： SAE-D Mount & SAE-D Spline (for K3VLS150)",null,null,null,null,null,null,null,null,null,null,{"$f":"IF(spec!R62=\"○\",\"★\",\"\")","v":""}]
[null,null,null,null,null," K ： SAE Mount & SAE Key Shaft (50:SAE-BB, 65:SAE-C, 85:SAE-C, 105:SAE-CC)",null,null,null,null,null,null,null,null,null,null,{"$f":"IF(spec!R63=\"◆\",\"◆\",\"\")","v":"◆"}]
[null,"Flange / Mounting Fixing Thread (Suction-Delivery, Through Drive)",null,null,8,"Flange Thread Suction-Delivery",null,null,null,null,"Mounting Thread Through Drive",null,null,null,null,null,null,"S"]
[null,null,null,null,null," S ： Unified",null,null,null,null," Metric",null,null,null,null,null,{"$f":"IF(spec!R65=\"○\",\"★\",\"\")","v":""}]
[null,null,null,null,null," H ： Metric",null,null,null,null," Metric",null,null,null,null,null,{"$f":"IF(spec!R66=\"○\",\"★\",\"\")","v":""}]
[null,"Flow Control",null,null,9,"Load Sense",null,null,null,null,"Pressure Cut-Off Control",null,null,null,null,null,null,"L0"]
[null,null,null,null,null," L0 ： w/ LS, w/ Bleed‐Off Orifice",null,null,null,null," w/ Pressure Cut-Off",null,null,null,null,null,{"$f":"IF(spec!R68=\"○\",\"★\",\"\")","v":""}]
[null,null,null,null,null," L1 ： w/ LS, w/o Bleed‐Off Orifice",null,null,null,null," w/ Pressure Cut-Off",null,null,null,null,null,{"$f":"IF(spec!R69=\"○\",\"★\",\"\")","v":""}]
[" ",null,null,null,null," P0 ： w/o LS",null,null,null,null," w/ Pressure Cut-Off",null,null,null,null,null,{"$f":"IF(spec!R70=\"○\",\"★\",\"\")","v":""}]
[null,null,null,null,null,"Electric Inverse Proportional Pressure Control"]
[null,null,null,null,null," PR2 : w/o LS, w/ Pressure Cut-Off - Electric Inverse Proportional Pressure Control (24V, Deutsch Connector)",null,null,null,null,null,null,null,null,null,null,{"$f":"IF(spec!R72=\"○\",\"★\",\"\")","v":""}]
[null,"Differential Pressure Setting Range",null,null,10," Blank : In case PR2 is chosen at [9]",null,null,null,null,null,null,null,null,null,null,{"$f":"IF(spec!R73=\"○\",\"★\",\"\")","v":""},"A"]
[null,null,null,null,null," A ： Standard Setting Range (1.0 - 3.0 MPa)",null,null,null,null,null,null,null,null,null,null,{"$f":"IF(spec!R74=\"○\",\"★\",\"\")","v":""}]
[null,null,null,null,null," C ： High Setting Range (1.5 - 4.0 MPa)",null,null,null,null,null,null,null,null,null,null,{"$f":"IF(spec!R75=\"○\",\"★\",\"\")","v":""}]
[null,"Additional Control Options",null,null,11," Blank ： w/o Any Additional Control or in case PR2 is chosen at [9]",null,null,null,null,null,null,null,null,null,null,{"$f":"IF(spec!R76=\"○\",\"★\",\"\")","v":""},"Blank"]
[null,null,null,null,null,"Torque Limit Control"]
[null,null,null,null,null," 00 ： Blanking Plate",null,null,null,null,null,null,null,null,null,null,{"$f":"IF(spec!R78=\"◆\",\"◆\",\"\")","v":"◆"}]
[null,null,null,null,null," A ： w/o Power Shift Control",null,null,null,null,null,null,null,null,null,null,{"$f":"IF(spec!R79=\"○\",\"★\",\"\")","v":""}]
[null,null,null,null,null," B ： w/ Power Shift  Control, Pilot Operated",null,null,null,null,null,null,null,null,null,null,{"$f":"IF(spec!R80=\"○\",\"★\",\"\")","v":""}]
[null,null,null,null,null," C2 ： w/ Power Shift Control, Electric Proportional Reducing Valve (24V, Deutsch Connector)",null,null,null,null,null,null,null,null,null,null,{"$f":"IF(spec!R81=\"○\",\"★\",\"\")","v":"★"}]
[null,null,null,null,null," C3 ： w/ Power Shift Control, Electric Proportional Reducing Valve (12V, Deutsch Connector)",null,null,null,null,null,null,null,null,null,null,{"$f":"IF(spec!R82=\"○\",\"★\",\"\")","v":"★"}]
[null,null,null,null,null,"Electric Displacement Control (Positive Control)"]
[null,null,null,null,null," E2 ： w/ Fail-Safe Function - Electric Proportional Solenoid (24V, Deutsch Connector)",null,null,null,null,null,null,null,null,null,null,{"$f":"IF(spec!R84=\"○\",\"★\",\"\")","v":""}]
[null,null,null,null,null," E3 ： w/ Fail-Safe Function - Electric Proportional Solenoid (12V, Deutsch Connector)",null,null,null,null,null,null,null,null,null,null,{"$f":"IF(spec!R85=\"○\",\"★\",\"\")","v":""}]
[null,null,null,null,null," F2 ： w/o Fail-Safe Function - Electric Proportional Solenoid (24V, Deutsch Connector)",null,null,null,null,null,null,null,null,null,null,{"$f":"IF(spec!R86=\"○\",\"★\",\"\")","v":""}]
[null,null,null,null,null," F3 ： w/o Fail-Safe Function - Electric Proportional Solenoid (12V, Deutsch Connector)",null,null,null,null,null,null,null,null,null,null,{"$f":"IF(spec!R87=\"○\",\"★\",\"\")","v":""}]
[null,"Torque Limit Setting",null,null,12," Blank : w/o Any Torque Limit Setting / Specific Torque Limit Setting or in case PR2 is chosen at [9]",null,null,null,null,null,null,null,null,null,null,{"$f":"IF(spec!R88=\"○\",\"★\",\"\")","v":""},"Blank"]
[null,null,null,null,null," H1 : H Spring, Corner Torque 85% (for w/ Power Shift Control)",null,null,null,null,null,null,null,null,null,null,{"$f":"IF(spec!R89=\"○\",\"★\",\"\")","v":""}]
[null,null,null,null,null," H2 : H Spring, Corner Torque 75% (for w/ Power Shift Control)",null,null,null,null,null,null,null,null,null,null,{"$f":"IF(spec!R90=\"○\",\"★\",\"\")","v":""},null,{"$f":"IF(spec!X76=\"×\",IF(T1=\"Language : English\",\"Please check the combination availability of code [11] [12].\",\"コード [11] [12]の組合せ可否をご確認ください。\"),\"\")","v":""}]
[null,null,null,null,null," H3 : H Spring, Corner Torque 65% (for w/ Power Shift Control)",null,null,null,null,null,null,null,null,null,null,{"$f":"IF(spec!R91=\"○\",\"★\",\"\")","v":""},null,{"$f":"\"K3VLS\"&R38&\"-\"&R75&R87","v":"K3VLS50-BlankBlank"}]
[null,null,null,null,null," H4 : H Spring, Corner Torque 55% (for w/ Power Shift Control)",null,null,null,null,null,null,null,null,null,null,{"$f":"IF(spec!R92=\"○\",\"★\",\"\")","v":""},null,"Pf1 =",{"$f":"IF($R$75=\"B\",0,IF($R$75=\"C2\",0,IF($R$75=\"C3\",0,\"\")))","v":""},{"$f":"IF($R$75=\"B\",\"MPa\",IF($R$75=\"C2\",\"mA\",IF($R$75=\"C3\",\"mA\",\"MPa\")))","v":"MPa"},{"$f":"IF(spec!U88=\"A\",\"\",VLOOKUP(spec!Z103,spec!Z105:AD155,2,0))","v":""},"Nm"]
[null,null,null,null,null," M1 : M Spring, Corner Torque 70% (for w/o Power Shift Control)",null,null,null,null,null,null,null,null,null,null,{"$f":"IF(spec!R93=\"○\",\"★\",\"\")","v":""},null,"Pf2 =",{"$f":"IF($R$75=\"B\",TEXT(0.75,\"0.00\"),IF($R$75=\"C2\",290,IF($R$75=\"C3\",570,\"\")))","v":""},{"$f":"IF($R$75=\"B\",\"MPa\",IF($R$75=\"C2\",\"mA\",IF($R$75=\"C3\",\"mA\",\"MPa\")))","v":"MPa"},{"$f":"IF(spec!U88=\"A\",\"\",VLOOKUP(spec!Z103,spec!Z105:AD155,3,0))","v":""},"Nm"]
[null,null,null,null,null," M2 : M Spring, Corner Torque 60% (for w/o Power Shift Control)",null,null,null,null,null,null,null,null,null,null,{"$f":"IF(spec!R94=\"○\",\"★\",\"\")","v":""},null,"Pf3 =",{"$f":"IF($R$75=\"B\",TEXT(2,\"0.00\"),IF($R$75=\"C2\",490,IF($R$75=\"C3\",970,\"\")))","v":""},{"$f":"IF($R$75=\"B\",\"MPa\",IF($R$75=\"C2\",\"mA\",IF($R$75=\"C3\",\"mA\",\"MPa\")))","v":"MPa"},{"$f":"IF(spec!U88=\"A\",\"\",VLOOKUP(spec!Z103,spec!Z105:AD155,4,0))","v":""},"Nm"]
[null,null,null,null,null," M3 : M Spring, Corner Torque 50% (for w/o Power Shift Control)",null,null,null,null,null,null,null,null,null,null,{"$f":"IF(spec!R95=\"○\",\"★\",\"\")","v":""},null,"Pf4 =",{"$f":"IF($R$75=\"B\",TEXT(3.3,\"0.00\"),IF($R$75=\"C2\",690,IF($R$75=\"C3\",1370,\"\")))","v":""},{"$f":"IF($R$75=\"B\",\"MPa\",IF($R$75=\"C2\",\"mA\",IF($R$75=\"C3\",\"mA\",\"MPa\")))","v":"MPa"},{"$f":"IF(spec!U88=\"A\",\"\",VLOOKUP(spec!Z103,spec!Z105:AD155,5,0))","v":""},"Nm"]
[null,null,null,null,null," M4 : M Spring, Corner Torque 40% (for w/o Power Shift Control)",null,null,null,null,null,null,null,null,null,null,{"$f":"IF(spec!R96=\"○\",\"★\",\"\")","v":""},null,"I1 =",{"$f":"IF(R75=\"E2\",200,IF(R75=\"E3\",400,IF(R75=\"F2\",200,IF(R75=\"F3\",400,\"\"))))","v":""},"mA","@0cm3"]
[null,null,null,null,null," M5 : M Spring, Corner Torque 30% (for w/o Power Shift Control)",null,null,null,null,null,null,null,null,null,null,{"$f":"IF(spec!R97=\"○\",\"★\",\"\")","v":""},null,"I2 =",{"$f":"IF(R75=\"E2\",600,IF(R75=\"E3\",1200,IF(R75=\"F2\",600,IF(R75=\"F3\",1200,\"\"))))","v":""},"mA","@qmaxcm3"]
[null,"Special Suffix",null,null,13," T*** : Managed by KPMJ",null,null,null,null,null,null,null,null,null,null,null,"T***"]
[null,null,null,null,null," A*** : Managed by KPM(USA)"]
[null,null,null,null,null," S*** : Managed by KPM(UK)"]

{"sheet":"spec","index":1,"n_rows":155,"n_cols":30,"rows_kept":155,"cut":false,"hidden":true,"merged":[[75,3,75,8],[67,2,67,8],[2,0,3,1],[50,0,51,1],[56,4,56,8],[57,4,57,8],[58,4,58,8],[59,4,59,8]]}
["1-1.　Pump Options"]
[]
["Model Code",null,"K3VLS",105,"-",1,"BB","R","CC","S","-","L1","A","A","M1"]
[null,null,1,2,3,4,5,6,7,8,null,9,10,11,12]
[]
[1,null,"K3VLS Series Pump"]
[null,null,"K3VLS Series, Variable Displacement,　Axial Piston, Open Loop Pump"]
[]
[2,null,"Pump Size",null,null,null,null,null,null,50,65,85,105,150]
[null,null,"Pump Size",null,null,null,null,null,null,"●","●","●","●","●"]
[]
[3,null,"O-ring Material (Oil seal in Viton only)"]
[null,null,"-","NBR O-ring seals"]
[null,null,"V","Viton O-ring seals",null,null,null,null,null,"●","●","●","●","●"]
[]
[4,null,"Series Type Code",null,null,null,null,null,null,null,null,null,null,null,null,null,null,"max dis","op1","op2","op3","op4","op5",null,"Rated sp","Max sp","Rated pres","Max pres","Capable speed"]
[null,null,1,"Standard Type",null,null,null,null,null,null,null,null,null,null,null,null,50,50,45,40,35,1,1,{"$f":"TEXT(R17,\"0\")&\", \"&TEXT(S17,\"0\")&\", \"&TEXT(T17,\"0\")&\", \"&TEXT(U17,\"0\")&\"cm3\"","v":"50, 45, 40, 35cm3"},2700,3250,28,35,{"$f":"IF('K3VLS-OEM'!$S$16=\"\",0,IF(Y17*R17/'K3VLS-OEM'!$S$16<Z17,Y17*R17/'K3VLS-OEM'!$S$16,Z17))","v":0}]
[null,null,null,null,null,null,null,null,null,null,null,null,null,null,null,null,65,65,60,55,1,1,1,{"$f":"TEXT(R18,\"0\")&\", \"&TEXT(S18,\"0\")&\", \"&TEXT(T18,\"0\")&\"cm3\"","v":"65, 60, 55cm3"},2600,3000,28,35,{"$f":"IF('K3VLS-OEM'!$S$16=\"\",0,IF(Y18*R18/'K3VLS-OEM'!$S$16<Z18,Y18*R18/'K3VLS-OEM'!$S$16,Z18))","v":0}]
[5,null,"Through Drive and Porting",null,null,null,null,null,null,50,65,85,105,150,null,null,85,85,80,75,70,1,1,{"$f":"TEXT(R19,\"0\")&\", \"&TEXT(S19,\"0\")&\", \"&TEXT(T19,\"0\")&\", \"&TEXT(U19,\"0\")&\"cm3\"","v":"85, 80, 75, 70cm3"},2500,3000,28,35,{"$f":"IF('K3VLS-OEM'!$S$16=\"\",0,IF(Y19*R19/'K3VLS-OEM'!$S$16<Z19,Y19*R19/'K3VLS-OEM'!$S$16,Z19))","v":0}]
[null,null,0,"Without Through Drive, Side Ported",null,null,null,null,null,"●","●","●","●","●",null,null,105,105,100,95,90,1,1,{"$f":"TEXT(R20,\"0\")&\", \"&TEXT(S20,\"0\")&\", \"&TEXT(T20,\"0\")&\", \"&TEXT(U20,\"0\")&\"cm3\"","v":"105, 100, 95, 90cm3"},2300,2640,28,35,{"$f":"IF('K3VLS-OEM'!$S$16=\"\",0,IF(Y20*R20/'K3VLS-OEM'!$S$16<Z20,Y20*R20/'K3VLS-OEM'!$S$16,Z20))","v":0}]
[null,null,"A","SAE-A Through Drive, Side Ported",null,null,null,null,null,"●","●","●","●","○",null,null,150,150,145,140,1,130,125,{"$f":"TEXT(R21,\"0\")&\", \"&TEXT(S21,\"0\")&\", \"&TEXT(T21,\"0\")&\", \"&TEXT(V21,\"0\")&\", \"&TEXT(W21,\"0\")&\" cm3\"","v":"150, 145, 140, 130, 125 cm3"},2200,2400,28,35,{"$f":"IF('K3VLS-OEM'!$S$16=\"\",0,IF(Y21*R21/'K3VLS-OEM'!$S$16<Z21,Y21*R21/'K3VLS-OEM'!$S$16,Z21))","v":0}]
[null,null,"B","SAE-B Through Drive, Side Ported",null,null,null,null,null,"●","●","●","●","●",null,null,null,{"$f":"VLOOKUP('K3VLS-OEM'!R38,Q17:R21,2,)","v":50},{"$f":"VLOOKUP('K3VLS-OEM'!R38,Q17:S21,3,)","v":45},{"$f":"VLOOKUP('K3VLS-OEM'!R38,Q17:T21,4,)","v":40},{"$f":"VLOOKUP('K3VLS-OEM'!R38,Q17:U21,5,)","v":35},{"$f":"VLOOKUP('K3VLS-OEM'!R38,Q17:V21,6,)","v":1},{"$f":"VLOOKUP('K3VLS-OEM'!R38,Q17:W21,7,)","v":1},{"$f":"VLOOKUP('K3VLS-OEM'!R38,Q17:X21,8,)","v":"50, 45, 40, 35cm3"},{"$f":"VLOOKUP('K3VLS-OEM'!R38,Q17:Y21,9,)","v":2700},{"$f":"VLOOKUP('K3VLS-OEM'!R38,Q17:Z21,10,)","v":3250},{"$f":"VLOOKUP('K3VLS-OEM'!R38,Q17:AA21,11,)","v":28},{"$f":"VLOOKUP('K3VLS-OEM'!R38,Q17:AB21,12,)","v":35},{"$f":"VLOOKUP('K3VLS-OEM'!R38,Q17:AC21,13,)","v":0}]
[null,null,"BB","SAE-BB Through Drive, Side Ported",null,null,null,null,null,"●","●","●","●","●"]
[null,null,"C","SAE-C, 2/4 bolt, Through Drive, Side Ported",null,null,null,null,null,"-","●","●","●","●"]
[null,null,"CC","SAE-CC, 2/4 bolt, Through Drive, Side Ported",null,null,null,null,null,"-","-","-","●","●"]
[null,null,"D","SAE-D, 2/4 bolt, Through Drive, Side Ported",null,null,null,null,null,"-","-","-","●","○"]
[null,null,"N","With Through Drive Shaft, Without Coupling,　Closed with Steel Cover, Side Ported",null,null,null,null,null,"●","●","●","●","●"]
[null,null,"R","Without Through Drive, Rear Ported",null,null,null,null,null,"●","●","●","●","●"]
[]
[6,null,"Direction of Rotation",null,null,null,null,null,null,50,65,85,105,150]
[null,null,"R","Clockwise",null,null,null,null,null,"●","●","●","●","●"]
[null,null,"L","Counterclockwise",null,null,null,null,null,"●","●","●","●","●"]
[]
[7,null,"Mounting Flange and Shaft",null,null,null,null,null,null,50,65,85,105,150]
[null,null,"B","SAE-B Mount & SAE-B Spline",null,null,null,null,null,"●","●","-","-","-"]
[null,null,"BB","SAE-B Mount & SAE-BB Spline",null,null,null,null,null,"●","●","-","-","-"]
[null,null,"C","SAE-C Mount & SAE-C Spline",null,null,null,null,null,"-","●","●","●","●"]
[null,null,"CC","SAE-C Mount & SAE-CC Spline",null,null,null,null,null,"-","-","-","●","●"]
[null,null,"D","SAE-D Mount & SAE-D Spline",null,null,null,null,null,"-","-","-","-","●",null,null,50,"●",{"$f":"VLOOKUP('K3VLS-OEM'!R38,Q39:R43,2,0)","v":"●"}]
[null,null,"K","SAE Mount & SAE Key Shaft",null,null,null,null,null,"◆","◆","◆","◆","-",null,null,65,"●"]
[null,null,null,null,null,null,null,null,null,null,null,null,null,null,null,null,85,"●"]
[8,null,"Flange Fixing Thread",null,"(Suction/Delivery)",null,null,null,null,50,65,85,105,150,null,null,105,"●"]
[null,null,"S","SAE 4-bolt Flange, UNC Threaded",null,null,null,null,null,"●","●","●","●","●",null,null,150,"●"]
[null,null,"H","SAE 4-bolt Flange, Metric Threaded",null,null,null,null,null,"●","●","●","●","●"]
[]
[null,null,"● ＝　Available",null,null,"○＝ Under development",null,null,"- ＝ Not Available"]
[null,null,null,null,null,null,null,null,null,null,null,null,null,null,null,null,0,{"$f":"HLOOKUP('K3VLS-OEM'!$R$38,spec!$J$19:$N$28,2,0)","v":"●"},{"$f":"VLOOKUP('K3VLS-OEM'!R46,Q47:R55,2,0)","v":"●"},"○",{"$f":"VLOOKUP('K3VLS-OEM'!R46,Q47:T55,4,0)","v":"×"}]
[null,null,null,null,null,null,null,null,null,null,null,null,null,null,null,null,"A",{"$f":"HLOOKUP('K3VLS-OEM'!$R$38,spec!$J$19:$N$28,3,0)","v":"●"},null,"×"]
["1-2.　Regulator Options",null,null,null,null,null,null,null,null,null,null,null,null,null,null,null,"B",{"$f":"HLOOKUP('K3VLS-OEM'!$R$38,spec!$J$19:$N$28,4,0)","v":"●"},null,"×"]
[null,null,null,null,null,null,null,null,null,null,null,null,null,null,null,null,"BB",{"$f":"HLOOKUP('K3VLS-OEM'!$R$38,spec!$J$19:$N$28,5,0)","v":"●"},null,"×"]
["Model Code",null,"K3VLS",105,"-",1,"BB","R","CC","S","-","L1","A","A","M1",null,"C",{"$f":"HLOOKUP('K3VLS-OEM'!$R$38,spec!$J$19:$N$28,6,0)","v":"-"},null,"×"]
[null,null,1,2,3,4,5,6,7,8,null,9,10,11,12,null,"CC",{"$f":"HLOOKUP('K3VLS-OEM'!$R$38,spec!$J$19:$N$28,7,0)","v":"-"},null,"×"]
[null,null,null,null,null,null,null,null,null,null,null,null,null,null,null,null,"D",{"$f":"HLOOKUP('K3VLS-OEM'!$R$38,spec!$J$19:$N$28,8,0)","v":"-"},null,"×"]
[null,null,null,null,null,null,null,null,null,null,null,null,null,null,null,null,"N",{"$f":"HLOOKUP('K3VLS-OEM'!$R$38,spec!$J$19:$N$28,9,0)","v":"●"},null,"×"]
[9,null,"Flow Control",null,null,null,null,null,null,null,null,null,null,null,null,null,"R",{"$f":"HLOOKUP('K3VLS-OEM'!$R$38,spec!$J$19:$N$28,10,0)","v":"●"},null,"○",null,null,null,{"$f":"VLOOKUP('K3VLS-OEM'!R38,W56:X60,2,0)","v":"SAE-B Mount & SAE-BB Key Shaft"},{"$f":"VLOOKUP('K3VLS-OEM'!R38,W56:Y60,3,0)","v":230}]
[null,null,null,"Load Sense & Pressure Cut-Off",null,null,null,null,null,50,65,85,105,150,null,null,"R",{"$f":"HLOOKUP('K3VLS-OEM'!$R$38,spec!J30:N32,2,0)","v":"●"},{"$f":"VLOOKUP('K3VLS-OEM'!R55,Q56:R66,2,0)","v":"●"},null,null,null,50,"SAE-B Mount & SAE-BB Key Shaft",230]
[null,null,"L0",null,"with LS Bleed-off Orifice",null,null,null,null,"●","●","●","●","●",null,null,"L",{"$f":"HLOOKUP('K3VLS-OEM'!$R$38,spec!J30:N32,3,0)","v":"●"},null,null,null,null,65,"SAE-C Mount & SAE-C Key Shaft",430]
[null,null,"L1",null,"without LS Bleed-off Orifice ",null,null,null,null,"●","●","●","●","●",null,null,"B",{"$f":"HLOOKUP('K3VLS-OEM'!$R$38,spec!$J$34:$N$39,2,0)","v":"●"},{"$f":"VLOOKUP('K3VLS-OEM'!R57,Q58:R63,2,0)","v":"●"},null,null,null,85,"SAE-C Mount & SAE-CC Key Shaft",700]
[null,null,"P0",null,"Pressure Cut-off",null,null,null,null,"●","●","●","●","●",null,null,"BB",{"$f":"HLOOKUP('K3VLS-OEM'!$R$38,spec!$J$34:$N$39,3,0)","v":"●"},null,null,null,null,105,"SAE-C Mount & SAE-CC Key Shaft",700]
[null,null,"PR2",null,"w/o LS, w/ Pressure Cut-Off (24V, Deutsch Connector)",null,null,null,null,"●","●","●","●","●",null,null,"C",{"$f":"HLOOKUP('K3VLS-OEM'!$R$38,spec!$J$34:$N$39,4,0)","v":"-"},null,null,null,null,150,"N/A","N/A"]
[null,null,null,null,null,null,null,null,null,null,null,null,null,null,null,null,"CC",{"$f":"HLOOKUP('K3VLS-OEM'!$R$38,spec!$J$34:$N$39,5,0)","v":"-"}]
[10,null,"Differential Pressure Setting Range (For the details see page 14)",null,null,null,null,null,null,50,65,85,105,150,null,null,"D",{"$f":"HLOOKUP('K3VLS-OEM'!$R$38,spec!$J$34:$N$39,6,0)","v":"-"}]
[null,null,"Blank","In case \"PR\" is chosen in 9th digit",null,null,null,null,null,"●","●","●","●","●",null,null,"K",{"$f":"HLOOKUP('K3VLS-OEM'!$R$38,spec!$J$34:$N$40,7,0)","v":"◆"}]
[null,null,"A","Standard Setting Range (1.0～3.0MPa)",null,null,null,null,null,"●","●","●","●","●"]
[null,null,"C","High Setting Range (1.5 ～ 4.0MPa)",null,null,null,null,null,"●","●","●","●","●",null,null,"S",{"$f":"HLOOKUP('K3VLS-OEM'!$R$38,spec!$J$42:$N$44,2,0)","v":"●"},{"$f":"VLOOKUP('K3VLS-OEM'!R63,Q65:R66,2,0)","v":"●"}]
[null,null,null,null,null,null,null,null,null,null,null,null,null,null,null,null,"H",{"$f":"HLOOKUP('K3VLS-OEM'!$R$38,spec!$J$42:$N$44,3,0)","v":"●"}]
[]
[11,null,"Additional Control Options          　　(For the additional control options \"11\", only one option per column is acceptable.)",null,null,null,null,null,null,50,65,85,105,150,null,null,"L0",{"$f":"HLOOKUP('K3VLS-OEM'!$R$38,spec!$J$56:$N$60,2,0)","v":"●"},{"$f":"VLOOKUP('K3VLS-OEM'!R66,Q68:R72,2,0)","v":"●"},{"$f":"U73&U76&U88","v":"baA"}]
[null,null,"Blank","Without Any Additional Control",null,null,null,null,null,"●","●","●","●","●",null,null,"L1",{"$f":"HLOOKUP('K3VLS-OEM'!$R$38,spec!$J$56:$N$60,3,0)","v":"●"}]
[null,null,null,null,null,null,null,null,null,null,null,null,null,null,null,null,"P0",{"$f":"HLOOKUP('K3VLS-OEM'!$R$38,spec!$J$56:$N$60,4,0)","v":"●"}]
[null,null,"\n","Torque Limit Control ",null,null,null,null,null,50,65,85,105,150]
[null,null,"00","  Blanking Plate",null,null,null,null,null,"◆","◆","◆","◆","◆",null,null,"PR2",{"$f":"HLOOKUP('K3VLS-OEM'!$R$38,spec!$J$56:$N$60,5,0)","v":"●"}]
[null,null,"A","　Without Power Shift Control",null,null,null,null,null,"●","●","●","●","●",null,null,"Blank",{"$f":"HLOOKUP('K3VLS-OEM'!$R$38,spec!$J$62:$N$65,2,0)","v":"●"},{"$f":"VLOOKUP('K3VLS-OEM'!R72,Q73:R75,2,0)","v":"●"},"a",{"$f":"VLOOKUP('K3VLS-OEM'!R72,Q73:T75,4,0)","v":"b"}]
[null,null,"B","　With Power Shift Control Pilot Operated",null,null,null,null,null,"●","●","●","●","●",null,null,"A",{"$f":"HLOOKUP('K3VLS-OEM'!$R$38,spec!$J$62:$N$65,3,0)","v":"●"},null,"b"]
[null,null,null,"　With Electric Proportional Reducing Valve,",null,null,null,null,null,null,null,null,null,null,null,null,"C",{"$f":"HLOOKUP('K3VLS-OEM'!$R$38,spec!$J$62:$N$65,4,0)","v":"●"},null,"b",{"$f":"U76&U88","v":"aA"}]
[null,null,"C2","　　　　　　　　　　 Voltage:24V, Deutsch Connecter",null,null,null,null,null,"○","○","○","○","○",null,null,"Blank",{"$f":"HLOOKUP('K3VLS-OEM'!$R$38,spec!J68:N69,2,0)","v":"●"},{"$f":"VLOOKUP('K3VLS-OEM'!R75,Q76:R87,2,0)","v":"●"},"a",{"$f":"VLOOKUP('K3VLS-OEM'!R75,Q76:T87,4,0)","v":"a"},"aA","○",{"$f":"VLOOKUP(U75,V76:W87,2,0)","v":"○"},"○",{"$f":"VLOOKUP(U75,V76:Y87,4,0)","v":"○"}]
[null,null,"C3"," 　　　　　　　　　　Voltage:12V, Deutsch Connecter",null,null,null,null,null,"○","○","○","○","○",null,null,null,null,null,null,null,"aB","×",null,"○"]
[null,null,null,null,null,null,null,null,null,null,null,null,null,null,null,null,"00",{"$f":"HLOOKUP('K3VLS-OEM'!$R$38,spec!$J$71:$N$77,2,0)","v":"◆"},null,"a",null,"aC","×",null,"○"]
[null,null,null,"Electric Displacement Control (Positive Control)",null,null,null,null,null,50,65,85,105,150,null,null,"A",{"$f":"HLOOKUP('K3VLS-OEM'!$R$38,spec!$J$71:$N$77,3,0)","v":"●"},null,"b",null,"bA","○",null,"×"]
[null,null,null,"　With Fail-safe Function",null,null,null,null,null,null,null,null,null,null,null,null,"B",{"$f":"HLOOKUP('K3VLS-OEM'!$R$38,spec!$J$71:$N$77,4,0)","v":"●"},null,"c",null,"bB","×",null,"○"]
[12,null,"E2","　　　　　　　　　　Voltage:24V, Deutsch Connecter",null,null,null,null,null,"●","●","-","-","-",null,null,"C2",{"$f":"HLOOKUP('K3VLS-OEM'!$R$38,spec!$J$71:$N$77,6,0)","v":"○"},null,"c",null,"bC","○",null,"○"]
[null,null,"E3","　　　　　　　　　　Voltage:12V, Deutsch Connecter",null,null,null,null,null,"●","●","-","-","-",null,null,"C3",{"$f":"HLOOKUP('K3VLS-OEM'!$R$38,spec!$J$71:$N$77,7,0)","v":"○"},null,"c",null,"cA","○",null,"×"]
[null,null,null,"　Without Fail-safe Function, ",null,null,null,null,null,null,null,null,null,null,null,null,null,null,null,null,null,"cB","○",null,"○"]
[null,null,"F2","　　　　　　　　　　Voltage:24V, Deutsch Connecter",null,null,null,null,null,"●","●","-","-","-",null,null,"E2",{"$f":"HLOOKUP('K3VLS-OEM'!$R$38,spec!$J$79:$N$85,3,0)","v":"●"},null,"d",null,"cC","×",null,"○"]
[null,null,"F3","　　　　　　　　　　Voltage:12V, Deutsch Connecter",null,null,null,null,null,"●","●","-","-","-",null,null,"E3",{"$f":"HLOOKUP('K3VLS-OEM'!$R$38,spec!$J$79:$N$85,4,0)","v":"●"},null,"d",null,"dA","○",null,"○"]
[null,null,null,null,null,null,null,null,null,null,null,null,null,null,null,null,"F2",{"$f":"HLOOKUP('K3VLS-OEM'!$R$38,spec!$J$79:$N$85,6,0)","v":"●"},null,"d",null,"dB","×",null,"○"]
[null,null,null,null,null,null,null,null,null,null,null,null,null,null,null,null,"F3",{"$f":"HLOOKUP('K3VLS-OEM'!$R$38,spec!$J$79:$N$85,7,0)","v":"●"},null,"d",null,"dC","×",null,"○"]
[12,null,"Torque Limit Setting (Available only with the attachment of Torque Limter)",null,null,null,null,null,null,50,65,85,105,150,null,null,"Blank",{"$f":"HLOOKUP('K3VLS-OEM'!$R$38,spec!$J$88:$N$98,2,0)","v":"●"},{"$f":"VLOOKUP('K3VLS-OEM'!R87,Q88:R97,2,0)","v":"●"},"A",{"$f":"VLOOKUP('K3VLS-OEM'!R87,Q88:T97,4,0)","v":"A"}]
[null,null,"Blank","Without Any Torque Limit Setting",null,null,null,null,null,"●","●","●","●","●",null,null,"H1",{"$f":"HLOOKUP('K3VLS-OEM'!$R$38,spec!$J$88:$N$98,3,0)","v":"●"},null,"B"]
[null,null,"H1","H Spring, Corner Torque 85%",null,null,null,null,null,"●","●","●","●","●",null,null,"H2",{"$f":"HLOOKUP('K3VLS-OEM'!$R$38,spec!$J$88:$N$98,4,0)","v":"●"},null,"B"]
[null,null,"H2","H Spring, Corner Torque 75%",null,null,null,null,null,"●","●","●","●","●",null,null,"H3",{"$f":"HLOOKUP('K3VLS-OEM'!$R$38,spec!$J$88:$N$98,5,0)","v":"●"},null,"B"]
[null,null,"H3","H Spring, Corner Torque 65%",null,null,null,null,null,"●","●","●","●","●",null,null,"H4",{"$f":"HLOOKUP('K3VLS-OEM'!$R$38,spec!$J$88:$N$98,6,0)","v":"●"},null,"B"]
[null,null,"H4","H Spring, Corner Torque 55%",null,null,null,null,null,"●","●","●","●","●",null,null,"M1",{"$f":"HLOOKUP('K3VLS-OEM'!$R$38,spec!$J$88:$N$98,7,0)","v":"●"},null,"C"]
[null,null,"M1","M Spring, Corner Torque 70%",null,null,null,null,null,"●","●","●","●","●",null,null,"M2",{"$f":"HLOOKUP('K3VLS-OEM'!$R$38,spec!$J$88:$N$98,8,0)","v":"●"},null,"C"]
[null,null,"M2","M Spring, Corner Torque 60%",null,null,null,null,null,"●","●","●","●","●",null,null,"M3",{"$f":"HLOOKUP('K3VLS-OEM'!$R$38,spec!$J$88:$N$98,9,0)","v":"●"},null,"C"]
[null,null,"M3","M Spring, Corner Torque 50%",null,null,null,null,null,"●","●","●","●","●",null,null,"M4",{"$f":"HLOOKUP('K3VLS-OEM'!$R$38,spec!$J$88:$N$98,10,0)","v":"●"},null,"C"]
[null,null,"M4","M Spring, Corner Torque 40%",null,null,null,null,null,"●","●","●","●","●",null,null,"M5",{"$f":"HLOOKUP('K3VLS-OEM'!$R$38,spec!$J$88:$N$98,11,0)","v":"●"},null,"C"]
[null,null,"M5","M Spring, Corner Torque 30%",null,null,null,null,null,"●","●","●","●","●"]
[]
[null,null,null,"Code H1 to H4: for torque limit control with power shift control (Additional Control Option Code [11]: \"B\", \"C2\", and \"C3\")"]
[null,null,null,"Code M1 to M5: for torque limit control without power shift control (Additional Control Option Code [11]: \"A\")"]
[]
[null,null,null,null,null,null,null,null,null,null,null,null,null,null,null,null,null,null,null,null,null,{"$f":"VLOOKUP('K3VLS-OEM'!R46,U105:V112,2,0)","v":2},null,{"$f":"VLOOKUP(T104+V103,W104:X151,2,0)","v":380},null,{"$f":"'K3VLS-OEM'!R38&'K3VLS-OEM'!R87","v":"50Blank"}]
[null,null,null,null,null,null,null,null,null,null,null,null,null,null,null,null,null,{"$f":"VLOOKUP('K3VLS-OEM'!R57,Q105:R110,2,0)","v":200},null,{"$f":"VLOOKUP('K3VLS-OEM'!R38,S105:T110,2,0)","v":100},null,1,101,123,null,"50H1","Pf1","Pf2","Pf3","Pf4"]
[null,null,null,null,null,null,null,null,null,null,null,null,null,null,null,null,"B",200,50,100,"A",2,102,380,null,"50H2",220,190,165,135]
[null,null,null,null,null,null,null,null,null,null,null,null,null,null,null,null,"BB",315,65,200,"B",3,103,435,null,"50H3",200,170,140,115]
[null,null,null,null,null,null,null,null,null,null,null,null,null,null,null,null,"C",630,85,300,"BB",4,104,"-",null,"50H4",170,145,120,95]
[null,null,null,null,null,null,null,null,null,null,null,null,null,null,null,null,"CC",1060,105,400,"C",5,105,"-",null,"65H1",150,125,100,80]
[null,null,null,null,null,null,null,null,null,null,null,null,null,null,null,null,"D",1490,125,500,"CC",6,106,"-",null,"65H2",285,245,210,175]
[null,null,null,null,null,null,null,null,null,null,null,null,null,null,null,null,"K",{"$f":"Y55","v":230},150,600,"N",7,107,"-",null,"65H3",250,215,180,145]
[null,null,null,null,null,null,null,null,null,null,null,null,null,null,null,null,null,null,null,null,0,8,108,"-",null,"65H4",220,185,150,120]
[null,null,null,null,null,null,null,null,null,null,null,null,null,null,null,null,null,null,null,null,"R",null,201,123,null,"85H1",190,160,130,100]
[null,null,null,null,null,null,null,null,null,null,null,null,null,null,null,null,null,null,null,null,null,null,202,380,null,"85H2",375,325,280,230]
[null,null,null,null,null,null,null,null,null,null,null,null,null,null,null,null,null,null,null,null,null,null,203,435,null,"85H3",330,285,240,195]
[null,null,null,null,null,null,null,null,null,null,null,null,null,null,null,null,null,null,null,null,null,null,204,435,null,"85H4",290,245,200,160]
[null,null,null,null,null,null,null,null,null,null,null,null,null,null,null,null,null,null,null,null,null,null,205,"-",null,"105H1",245,205,165,125]
[null,null,null,null,null,null,null,null,null,null,null,null,null,null,null,null,null,null,null,null,null,null,206,"-",null,"105H2",455,395,340,280]
[null,null,null,null,null,null,null,null,null,null,null,null,null,null,null,null,null,null,null,null,null,null,207,"-",null,"105H3",405,350,295,235]
[null,null,null,null,null,null,null,null,null,null,null,null,null,null,null,null,null,null,null,null,null,null,208,"-",null,"105H4",360,305,250,200]
[null,null,null,null,null,null,null,null,null,null,null,null,null,null,null,null,null,null,null,null,null,null,301,123,null,"150H1",310,260,210,160]
[null,null,null,null,null,null,null,null,null,null,null,null,null,null,null,null,null,null,null,null,null,null,302,380,null,"150H2",655,570,475,385]
[null,null,null,null,null,null,null,null,null,null,null,null,null,null,null,null,null,null,null,null,null,null,303,435,null,"150H3",585,500,410,330]
[null,null,null,null,null,null,null,null,null,null,null,null,null,null,null,null,null,null,null,null,null,null,304,435,null,"150H4",510,435,355,275]
[null,null,null,null,null,null,null,null,null,null,null,null,null,null,null,null,null,null,null,null,null,null,305,"-",null,"50M1",440,370,295,225]
[null,null,null,null,null,null,null,null,null,null,null,null,null,null,null,null,null,null,null,null,null,null,306,"-",null,"50M2",155,"-","-","-"]
[null,null,null,null,null,null,null,null,null,null,null,null,null,null,null,null,null,null,null,null,null,null,307,"-",null,"50M3",135,"-","-","-"]
[null,null,null,null,null,null,null,null,null,null,null,null,null,null,null,null,null,null,null,null,null,null,308,"-",null,"50M4",110,"-","-","-"]
[null,null,null,null,null,null,null,null,null,null,null,null,null,null,null,null,null,null,null,null,null,null,401,123,null,"50M5",90,"-","-","-"]
[null,null,null,null,null,null,null,null,null,null,null,null,null,null,null,null,null,null,null,null,null,null,402,380,null,"65M1",65,"-","-","-"]
[null,null,null,null,null,null,null,null,null,null,null,null,null,null,null,null,null,null,null,null,null,null,403,435,null,"65M2",200,"-","-","-"]
[null,null,null,null,null,null,null,null,null,null,null,null,null,null,null,null,null,null,null,null,null,null,404,558,null,"65M3",175,"-","-","-"]
[null,null,null,null,null,null,null,null,null,null,null,null,null,null,null,null,null,null,null,null,null,null,405,702,null,"65M4",145,"-","-","-"]
[null,null,null,null,null,null,null,null,null,null,null,null,null,null,null,null,null,null,null,null,null,null,406,"-",null,"65M5",115,"-","-","-"]
[null,null,null,null,null,null,null,null,null,null,null,null,null,null,null,null,null,null,null,null,null,null,407,"-",null,"85M1",85,"-","-","-"]
[null,null,null,null,null,null,null,null,null,null,null,null,null,null,null,null,null,null,null,null,null,null,408,"-",null,"85M2",265,"-","-","-"]
[null,null,null,null,null,null,null,null,null,null,null,null,null,null,null,null,null,null,null,null,null,null,501,123,null,"85M3",227,"-","-","-"]
[null,null,null,null,null,null,null,null,null,null,null,null,null,null,null,null,null,null,null,null,null,null,502,380,null,"85M4",190,"-","-","-"]
[null,null,null,null,null,null,null,null,null,null,null,null,null,null,null,null,null,null,null,null,null,null,503,435,null,"85M5",150,"-","-","-"]
[null,null,null,null,null,null,null,null,null,null,null,null,null,null,null,null,null,null,null,null,null,null,504,435,null,"105M1",115,"-","-","-"]
[null,null,null,null,null,null,null,null,null,null,null,null,null,null,null,null,null,null,null,null,null,null,505,899,null,"105M2",330,"-","-","-"]
[null,null,null,null,null,null,null,null,null,null,null,null,null,null,null,null,null,null,null,null,null,null,506,"-",null,"105M3",281,"-","-","-"]
[null,null,null,null,null,null,null,null,null,null,null,null,null,null,null,null,null,null,null,null,null,null,507,"-",null,"105M4",235,"-","-","-"]
[null,null,null,null,null,null,null,null,null,null,null,null,null,null,null,null,null,null,null,null,null,null,508,"-",null,"105M5",190,"-","-","-"]
[null,null,null,null,null,null,null,null,null,null,null,null,null,null,null,null,null,null,null,null,null,null,601,123,null,"150M1",140,"-","-","-"]
[null,null,null,null,null,null,null,null,null,null,null,null,null,null,null,null,null,null,null,null,null,null,602,380,null,"150M2",470,"-","-","-"]
[null,null,null,null,null,null,null,null,null,null,null,null,null,null,null,null,null,null,null,null,null,null,603,435,null,"150M3",400,"-","-","-"]
[null,null,null,null,null,null,null,null,null,null,null,null,null,null,null,null,null,null,null,null,null,null,604,435,null,"150M4",335,"-","-","-"]
[null,null,null,null,null,null,null,null,null,null,null,null,null,null,null,null,null,null,null,null,null,null,605,899,null,"150M5",265,"-","-","-"]
[null,null,null,null,null,null,null,null,null,null,null,null,null,null,null,null,null,null,null,null,null,null,606,"-",null,"50Blank","-","-","-","-"]
[null,null,null,null,null,null,null,null,null,null,null,null,null,null,null,null,null,null,null,null,null,null,607,"-",null,"65Blank","-","-","-","-"]
[null,null,null,null,null,null,null,null,null,null,null,null,null,null,null,null,null,null,null,null,null,null,608,"-",null,"85Blank","-","-","-","-"]
[null,null,null,null,null,null,null,null,null,null,null,null,null,null,null,null,null,null,null,null,null,null,null,null,null,"105Blank","-","-","-","-"]
[null,null,null,null,null,null,null,null,null,null,null,null,null,null,null,null,null,null,null,null,null,null,null,null,null,"125Blank","-","-","-","-"]
[null,null,null,null,null,null,null,null,null,null,null,null,null,null,null,null,null,null,null,null,null,null,null,null,null,"150Blank","-","-","-","-"]
[null,null,null,null,null,null,null,null,null,null,null,null,null,null,null,null,null,null,null,null,null,null,null,null,null,null,"-","-","-","-"]